bitfinex-derivatives/quotes_ETHF0:USTF0_20251012
["timestamp","ask_amount","ask_price","bid_price","bid_amount"]
[1760237839215,0.13540812,3725.5,3725.2,0.48275]
[1760237839621,0.3458,3725.4,3724.6,0.1291]
[1760237839814,0.13540812,3725.5,3725.1,0.48276]
[1760237840016,0.3458,3725.4,3724.6,0.1291]
[1760237840321,0.3458,3725.4,3725.3,0.48274]
[1760237845013,0.00230812,3725.5,3725.4,0.1291]
[1760237845211,0.3458,3725.2,3723.9,2.03847748]
[1760237845415,0.1331,3724.5,3724.4,0.48285]
[1760237845721,0.4789,3724.5,3724.4,0.48285]
[1760237847722,0.3458,3724.4,3724.3,0.48286]
[1760237850216,0.3458,3724.4,3723.9,0.48292]
[1760237850417,0.3458,3724.4,3723.4,0.1291]
[1760237850621,0.3458,3724.4,3723.9,0.48291]
[1760237850819,0.1331,3724.0,3722.4,2.03847748]
[1760237851025,0.3458,3723.4,3722.4,0.1291]
[1760237851225,0.1331,3723.5,3722.6,1.20774]
[1760237851525,0.3458,3723.4,3723.2,0.483]
[1760237851821,0.1331,3723.5,3723.3,0.48299]
[1760237852014,0.3458,3723.4,3723.3,0.48299]
[1760237852215,0.1331,3723.5,3723.3,0.48299]
[1760237852423,0.3458,3723.9,3723.4,0.48298]
[1760237852623,0.3458,3723.9,3723.7,0.48294]
[1760237852925,0.3458,3723.9,3723.8,0.48293]
[1760237854323,0.4789,3724.0,3723.8,0.48293]
[1760237854828,0.3458,3723.9,3723.8,0.48293]
[1760237855526,0.3458,3723.9,3723.2,0.00298495]
[1760237855728,0.3458,3723.9,3723.6,0.48296]
[1760237856026,0.3458,3723.9,3723.2,0.00298495]
[1760237856222,0.1331,3724.0,3723.5,0.48297]
[1760237856427,0.1331,3724.0,3723.6,0.48296]
[1760237856726,0.1331,3724.0,3723.2,0.00298495]
[1760237856727,0.1331,3724.0,3723.3,0.1291]
[1760237856925,0.3429,3723.9,3723.5,0.48297]
[1760237857429,0.1331,3724.0,3723.5,0.48297]
[1760237857822,0.3429,3723.9,3723.6,0.48296]
[1760237858124,0.3429,3723.4,3723.2,0.00298495]
[1760237858626,0.3429,3723.4,3723.2,0.48599495]
[1760237858828,0.3429,3723.4,3722.2,1.20785]
[1760237858829,0.3429,3723.1,3722.2,1.90937748]
[1760237859023,0.3429,3722.4,3721.7,1.90937748]
[1760237859225,0.146,3722.5,3722.1,0.48315]
[1760237859419,0.146,3722.5,3722.3,0.48313]
[1760237859634,0.3429,3722.4,3722.3,0.48313]
[1760237859930,0.34506241,3722.4,3722.3,0.48658218]
[1760237861021,0.00216241,3722.4,3722.3,0.61568218]
[1760237861533,0.00216241,3722.4,3722.3,5.61568218]
[1760237861835,0.00216241,3722.4,3722.3,0.61568218]
[1760237865726,0.146,3723.5,3723.1,0.48302]
[1760237865927,0.3504,3723.4,3723.2,0.48301]
[1760237866133,0.146,3723.5,3722.3,1.21127218]
[1760237866134,0.146,3723.5,3723.0,0.48303]
[1760237866530,0.4924,3722.5,3722.4,0.48312]
[1760237866732,0.49499349,3722.5,3722.4,0.48312]
[1760237867134,0.35299349,3722.5,3722.4,0.48312]
[1760237867937,0.00259349,3722.5,3722.4,5.61022]
[1760237868131,0.35299349,3722.5,3722.4,0.48312]
[1760237868630,0.00259349,3722.5,3722.4,0.61022]
[1760237868940,0.00259349,3722.5,3722.4,5.61022]
[1760237869235,0.3504,3723.8,3722.9,0.1271]
[1760237869530,0.142,3723.5,3723.3,0.48299]
[1760237869734,0.3504,3723.4,3723.3,0.48299]
[1760237869934,0.3504,3723.9,3723.7,0.48294]
[1760237870129,0.00219665,3723.9,3723.5,0.48297]
[1760237870332,0.3504,3723.8,3723.5,0.48297]
[1760237870836,0.00219665,3723.9,3723.5,0.48297]
[1760237871037,0.3504,3723.8,3723.5,0.48297]
[1760237872439,0.00219665,3723.9,3723.5,0.48297]
[1760237872937,0.3504,3723.8,3723.5,0.48297]
[1760237873434,0.00219665,3723.9,3723.5,0.48297]
[1760237873835,0.3504,3723.8,3723.5,0.48297]
[1760237874235,0.00219665,3723.9,3723.5,0.48297]
[1760237874442,0.3504,3723.8,3723.5,0.48297]
[1760237874847,0.3504,3723.8,3722.6,0.1271]
[1760237875343,0.3504,3723.8,3723.2,0.48301]
[1760237875644,0.3504,3723.4,3723.2,0.48301]
[1760237875838,0.142,3723.5,3723.2,0.48301]
[1760237876039,0.3504,3723.4,3723.2,0.48301]
[1760237876441,0.3504,3723.4,3723.3,0.483]
[1760237878250,0.142,3723.5,3723.3,0.6101]
[1760237879248,0.4924,3723.5,3723.3,0.6101]
[1760237880147,0.3504,3723.4,3723.3,0.483]
[1760237880348,0.3504,3723.4,3722.5,0.1271]
[1760237880545,0.35259665,3723.9,3723.5,0.48297]
[1760237880752,0.00219665,3723.9,3723.5,0.48297]
[1760237880945,0.3504,3723.8,3723.5,0.61007]
[1760237881249,0.00219665,3723.9,3723.5,0.61007]
[1760237881443,0.00219665,3723.9,3723.7,0.48294]
[1760237881645,0.3504,3723.8,3723.7,0.48294]
[1760237881942,0.00219665,3723.9,3723.0,0.1271]
[1760237881943,0.3504,3723.4,3723.0,0.48304]
[1760237882140,0.142,3723.5,3723.0,0.48304]
[1760237882348,0.62499,3723.5,3722.8,0.48306]
[1760237882544,0.142,3723.0,3722.8,0.48306]
[1760237882750,0.3504,3722.9,3722.8,0.48306]
[1760237883651,0.4924,3723.0,3722.8,0.48306]
[1760237884251,0.3504,3722.9,3722.8,0.48306]
[1760237886253,0.3504,3722.9,3722.3,0.12875218]
[1760237886855,0.3595,3722.4,3722.3,0.00345218]
[1760237888251,0.3595,3722.9,3722.4,0.1253]
[1760237888857,0.3595,3723.4,3723.1,0.48302]
[1760237889052,0.36169665,3723.9,3722.8,1.20767]
[1760237889252,0.00219665,3723.9,3723.7,0.48295]
[1760237889558,0.00219665,3723.9,3723.8,0.1253]
[1760237890152,0.00219665,3723.9,3723.7,0.48295]
[1760237890356,0.3595,3723.8,3723.7,0.48295]
[1760237891857,0.1367,3723.5,3723.0,2.3958803]
[1760237892062,0.1367,3723.5,3722.3,2.52463248]
[1760237892262,0.3595,3723.4,3722.7,0.48307]
[1760237892558,0.3595,3723.4,3722.8,0.48306]
[1760237892758,0.3595,3723.4,3722.3,0.12875218]
[1760237892956,0.1367,3723.0,3722.5,0.48309]
[1760237893263,0.1367,3723.0,3722.6,0.48308]
[1760237893459,0.3595,3722.9,3722.6,0.48308]
[1760237894258,0.3595,3722.9,3722.7,0.48307]
[1760237894460,0.1367,3723.0,3722.7,0.48307]
[1760237894651,0.4962,3723.5,3723.3,0.48299]
[1760237894852,0.00219665,3723.9,3723.1,0.48302]
[1760237895056,0.1367,3723.5,3723.1,0.48302]
[1760237895650,0.3595,3723.4,3723.1,0.48302]
[1760237895959,0.1367,3723.5,3723.2,0.48301]
[1760237896262,0.3595,3723.4,3723.2,0.48301]
[1760237896459,0.1367,3723.5,3723.2,0.48301]
[1760237896662,0.1367,3723.5,3723.3,0.48299]
[1760237896861,0.3595,3723.4,3723.3,0.48299]
[1760237897061,0.00219665,3723.9,3723.0,0.1253]
[1760237897562,0.00219665,3723.9,3723.8,0.1253]
[1760237900958,0.9601828,3725.6,3723.8,0.1253]
[1760237900959,0.5919828,3725.9,3723.8,5.0]
[1760237901156,0.1367,3726.5,3723.8,5.0]
[1760237901157,0.81873665,3726.0,3723.8,2.3958803]
[1760237901363,0.81873665,3726.0,3723.7,2.41477]
[1760237901364,0.1367,3726.0,3725.8,0.48267]
[1760237901664,0.4962,3726.5,3726.4,0.4826]
[1760237902163,0.49963862,3726.5,3726.4,0.48550667]
[1760237902566,0.49963862,3726.5,3726.4,0.00290667]
[1760237902768,5.49963862,3726.5,3726.4,0.00290667]
[1760237905170,0.49963862,3726.5,3726.4,0.00290667]
[1760237905363,0.49963862,3726.5,3726.4,0.48550667]
[1760237906167,0.00343862,3726.5,3726.4,0.48550667]
[1760237907972,0.022,3727.8,3727.4,0.48247]
[1760237908270,0.3815,3727.8,3727.7,0.48243]
[1760237908663,0.022,3727.8,3727.7,0.48243]
[1760237908961,0.02513123,3727.8,3727.7,0.48243]
[1760237909164,0.4962,3728.5,3728.2,0.48236]
[1760237909373,0.3595,3728.4,3728.2,0.48236]
[1760237909673,0.1367,3728.5,3728.2,0.48236]
[1760237909859,0.3595,3728.9,3728.5,0.48232]
[1760237910064,0.1367,3729.5,3728.7,0.4823]
[1760237910370,0.13981675,3729.0,3728.7,0.4823]
[1760237910667,0.13981675,3729.0,3728.4,0.48233]
[1760237910860,0.3595,3728.9,3728.6,0.48231]
[1760237911060,0.3595,3728.9,3728.8,0.48229]
[1760237912066,0.3595,3728.9,3728.5,0.48232]
[1760237912466,0.13981675,3729.0,3728.7,0.4823]
[1760237912758,0.3595,3728.9,3727.3,1.20621]
[1760237912959,0.13981675,3729.0,3728.9,0.48228]
[1760237913163,0.49931675,3729.0,3728.9,0.48228]
[1760237913761,0.00311675,3729.0,3728.9,0.48228]
[1760237916968,0.35051675,3729.0,3728.9,0.48228]
[1760237917168,0.35051675,3729.0,3727.2,0.21109505]
[1760237917169,0.3474,3728.9,3727.2,0.21109505]
[1760237917370,0.49531675,3729.0,3726.5,12.06475]
[1760237917571,0.49531675,3729.0,3728.9,0.48228]
[1760237920061,0.49531675,3729.0,3727.6,1.2061]
[1760237920262,0.49531675,3729.0,3726.5,0.22028538]
[1760237920263,0.3474,3728.4,3728.3,0.48235]
[1760237920470,0.1448,3728.5,3728.3,0.48235]
[1760237920664,0.49531675,3729.0,3727.8,1.20605]
[1760237920969,0.3474,3728.9,3728.8,0.48228]
[1760237921862,5.3424,3728.9,3726.5,0.22028538]
[1760237922067,0.134,3728.5,3728.3,0.48234]
[1760237922265,0.3424,3728.4,3728.3,0.48234]
[1760237922463,0.134,3728.5,3728.1,0.48237]
[1760237922967,0.3424,3728.4,3728.1,0.48237]
[1760237923167,0.134,3728.5,3728.1,0.48237]
[1760237923466,0.3424,3728.4,3728.2,0.48236]
[1760237923666,0.3424,3728.4,3728.3,0.48234]
[1760237926370,0.3424,3728.8,3728.7,0.4823]
[1760237929074,0.14791675,3729.0,3728.4,0.48234]
[1760237929276,0.134,3728.5,3728.3,0.48235]
[1760237929470,0.3424,3728.4,3728.3,0.48235]
[1760237929667,0.134,3728.5,3728.3,0.48235]
[1760237929973,0.49031675,3729.0,3728.9,0.48228]
[1760237931172,0.3424,3728.9,3728.7,0.48229]
[1760237931372,0.14791675,3729.0,3728.9,0.48228]
[1760237931880,0.49031675,3729.0,3728.9,0.48228]
[1760237934880,0.14791675,3729.0,3728.9,0.48228]
[1760237935077,0.00311675,3729.0,3728.9,0.48228]
[1760237935577,0.00311675,3729.0,3728.9,5.48228]
[1760237935783,0.00311675,3729.0,3728.9,0.48228]
[1760237935980,0.34551675,3729.0,3728.9,0.48228]
[1760237936180,0.00311675,3729.0,3728.9,0.48228]
[1760237937083,0.47951675,3729.0,3728.9,0.48228]
[1760237937480,1.14226145,3729.0,3728.9,0.48228]
[1760237938676,0.3424,3728.9,3728.8,0.48229]
[1760237938876,1.0051447,3728.9,3728.8,0.48229]
[1760237939887,0.3424,3728.8,3728.7,0.4823]
[1760237940082,1.0051447,3728.8,3728.7,0.4823]
[1760237944089,0.6627447,3728.8,3728.7,0.4823]
[1760237944390,0.13711675,3729.0,3728.9,0.48228]
[1760237944889,0.00311675,3729.0,3728.9,0.48228]
[1760237946389,0.3623,3728.9,3727.9,1.90488694]
[1760237946691,0.65173125,3728.8,3728.6,0.4823]
[1760237946885,0.14041675,3729.0,3728.9,0.48228]
[1760237946886,0.00311675,3729.0,3728.9,0.48228]
[1760237947085,0.65478748,3729.0,3728.9,0.48228]
[1760237947593,0.00311675,3729.0,3728.9,0.48228]
[1760237949088,0.134,3730.0,3729.8,0.48216]
[1760237949287,0.4963,3730.0,3729.8,0.48216]
[1760237949490,0.1373,3730.5,3730.3,0.4821]
[1760237949491,0.3623,3730.4,3730.3,0.4821]
[1760237949884,1.00975207,3730.4,3730.3,0.4821]
[1760237950091,0.3655308,3730.4,3730.3,0.48541819]
[1760237950289,0.0032308,3730.4,3730.3,0.48541819]
[1760237951196,0.9551093,3731.3,3730.3,5.00331819]
[1760237951493,0.1373,3731.5,3731.2,0.48198]
[1760237951693,0.1373,3731.5,3731.4,0.48195]
[1760237952003,0.3623,3731.9,3730.9,1.20503]
[1760237952294,0.36465193,3731.9,3730.9,1.20503]
[1760237952495,0.36465193,3731.9,3731.7,0.48191]
[1760237953302,0.00235193,3731.9,3731.7,0.48191]
[1760237954795,0.3623,3732.7,3730.8,1.90488694]
[1760237955098,0.3623,3732.7,3732.6,0.4818]
[1760237955895,0.36420484,3732.7,3732.6,0.4818]
[1760237956291,0.00190484,3732.7,3732.6,0.4818]
[1760237956496,0.1373,3733.5,3733.4,0.48169]
[1760237956795,0.4996,3733.5,3733.4,0.48169]
[1760237957191,0.3623,3733.9,3733.7,0.48165]
[1760237957391,0.3623,3733.9,3733.8,0.48163]
[1760237957589,0.36536584,3733.9,3733.8,0.48507202]
[1760237957996,0.00306584,3733.9,3733.8,0.48507202]
[1760237960198,0.36536584,3733.9,3733.8,0.48507202]
[1760237960507,0.00306584,3733.9,3733.8,0.48507202]
[1760237961501,0.36536584,3733.9,3733.8,0.48507202]
[1760237963694,5.36536584,3733.9,3733.8,0.00344202]
[1760237964100,5.36536584,3733.9,3732.4,1.20455]
[1760237964101,0.1373,3733.5,3733.2,0.48171]
[1760237964296,0.3623,3733.4,3733.2,0.48171]
[1760237964502,0.3623,3733.4,3733.3,0.4817]
[1760237964902,0.1373,3733.5,3733.1,0.48173]
[1760237965096,0.3623,3733.4,3733.1,0.00193758]
[1760237965400,0.61899,3733.5,3733.1,0.00193758]
[1760237965401,0.1373,3733.5,3733.1,0.00193758]
[1760237965602,0.3623,3733.4,3733.3,0.4817]
[1760237965901,0.1373,3733.5,3733.3,0.4817]
[1760237966105,0.1373,3733.5,3733.1,0.48366758]
[1760237966398,0.3623,3733.4,3733.3,0.4817]
[1760237966599,0.1373,3733.5,3733.3,0.4817]
[1760237966906,0.00306584,3733.9,3733.7,0.48166]
[1760237968003,0.00306584,3733.9,3733.2,1.20429]
[1760237968004,0.3623,3734.3,3734.2,0.48159]
[1760237968210,1.20342,3736.0,3734.9,0.4815]
[1760237968211,0.4996,3735.0,3734.9,0.4815]
[1760237968801,0.3623,3735.4,3735.3,0.48145]
[1760237969097,0.00190964,3735.4,3735.3,0.48145]
[1760237970005,0.36420964,3735.4,3733.9,1.20407]
[1760237970304,0.1373,3734.5,3734.1,0.4816]
[1760237970510,0.3623,3734.4,3732.4,1.20454]
[1760237970806,0.4996,3734.0,3733.9,0.48162]
[1760237972010,0.3623,3733.9,3732.7,1.20444]
[1760237972204,0.1373,3734.0,3733.4,0.48168]
[1760237972506,0.4996,3734.0,3733.9,0.48163]
[1760237972702,0.4996,3734.0,3733.7,0.48165]
[1760237973006,0.4996,3734.0,3732.3,1.20459]
[1760237973007,0.3623,3733.4,3732.3,1.20459]
[1760237973202,0.1373,3733.5,3731.9,1.20471]
[1760237973406,0.3623,3733.4,3731.9,1.20471]
[1760237973900,0.1373,3733.5,3733.0,0.48174]
[1760237974096,0.3623,3733.4,3733.0,0.48174]
[1760237974297,0.3623,3733.4,3732.8,0.48177]
[1760237974505,0.1373,3733.5,3731.9,1.20471]
[1760237974705,0.1373,3733.5,3731.6,1.20481]
[1760237975005,0.1373,3733.5,3733.1,0.48365758]
[1760237975312,0.35,3733.4,3733.3,0.48171]
[1760237975821,0.1373,3733.5,3733.1,0.00193758]
[1760237976002,0.1373,3733.5,3733.1,0.48365758]
[1760237976208,0.4873,3734.5,3733.3,1.20428]
[1760237976508,0.1422,3734.0,3733.8,0.48163]
[1760237976700,0.35,3733.9,3733.8,0.48163]
[1760237977403,0.35,3733.9,3733.1,0.00193758]
[1760237977812,0.1422,3733.5,3733.2,0.48172]
[1760237978300,0.35,3733.4,3733.1,0.00193758]
[1760237979105,0.1422,3733.5,3733.1,0.48365758]
[1760237979311,0.35,3733.4,3733.1,0.00193758]
[1760237979611,0.35,3733.4,3733.3,0.4817]
[1760237980000,0.35,3733.9,3733.7,0.48165]
[1760237980307,0.35,3733.9,3733.8,0.48163]
[1760237982107,0.3476,3733.9,3733.8,0.48163]
[1760237982312,0.4849,3734.5,3734.4,0.48157]
[1760237982914,0.3476,3734.9,3734.8,0.48151]
[1760237984013,0.3476,3734.9,3734.6,0.48153]
[1760237984510,0.48149,3735.1,3734.6,0.48153]
[1760237984703,0.48145,3735.3,3734.6,0.48153]
[1760237984907,0.3476,3734.9,3733.8,1.20411]
[1760237985207,0.3476,3734.9,3734.6,0.48153]
[1760237985606,0.3476,3734.9,3734.8,0.4815]
[1760237985806,0.3476,3734.9,3733.8,1.20411]
[1760237985807,0.48148,3735.1,3734.6,0.48153]
[1760237986102,0.3476,3734.9,3734.6,0.48153]
[1760237986302,0.48148,3735.1,3734.6,0.48153]
[1760237986613,0.48148,3735.1,3733.8,1.20411]
[1760237986614,0.48146,3735.3,3734.7,0.48152]
[1760237987010,0.3476,3734.9,3734.7,0.48152]
[1760237987206,0.48334964,3735.4,3734.7,0.48152]
[1760237987411,0.3476,3734.9,3734.8,0.48151]
[1760237987711,0.00190964,3735.4,3734.8,0.48151]
[1760237987905,0.00190964,3735.4,3735.3,0.48145]
[1760237988105,0.98656585,3735.4,3735.3,0.48145]
[1760237988615,0.00190964,3735.4,3735.3,0.48145]
[1760237988916,0.1358,3736.0,3735.3,0.48145]
[1760237989208,0.9551093,3736.3,3736.2,0.48133]
[1760237989209,0.3476,3736.3,3736.2,0.48133]
[1760237990109,0.3508991,3736.3,3736.2,0.48328458]
[1760237991209,0.3508991,3736.3,3736.2,0.00195458]
[1760237991516,5.3508991,3736.3,3736.2,0.00195458]
[1760237991719,0.3508991,3736.3,3736.2,0.00195458]
[1760237994311,5.3508991,3736.3,3736.2,0.00195458]
[1760237995117,0.3508991,3736.3,3736.2,0.00195458]
[1760237995312,0.3508991,3736.3,3736.2,0.48328458]
[1760237995814,0.3508991,3736.3,3736.2,0.00195458]
[1760237996518,5.3508991,3736.3,3736.2,0.00195458]
[1760237998819,5.3508991,3736.3,3735.3,0.48144]
[1760237998820,0.1358,3736.0,3734.1,1.204]
[1760237999022,0.3476,3734.9,3734.8,0.48151]
[1760237999615,0.1358,3735.0,3734.8,0.48151]
[1760237999920,0.4834,3735.0,3734.8,0.48442171]
[1760238000222,0.3476,3734.9,3734.8,0.00291171]
[1760238000722,0.8291,3734.9,3734.8,0.00291171]
[1760238003424,5.8291,3734.9,3734.8,0.00291171]
[1760238003613,0.1358,3734.0,3733.6,0.48166]
[1760238003816,0.1358,3734.0,3733.7,0.48165]
[1760238004113,0.3476,3733.9,3732.5,1.90488694]
[1760238004314,0.3476,3733.4,3732.0,1.90488694]
[1760238004518,0.00249628,3733.4,3732.2,1.90488694]
[1760238004722,0.4691,3735.0,3733.4,1.20424]
[1760238004921,0.4691,3735.0,3734.3,0.48157]
[1760238005122,0.4691,3735.0,3734.1,0.4816]
[1760238005329,0.4691,3735.0,3733.4,1.20424]
[1760238005330,0.3333,3734.4,3734.0,0.48161]
[1760238005520,0.1409,3734.5,3734.1,0.4816]
[1760238005830,0.3333,3733.9,3732.7,1.90488694]
[1760238006026,0.14322671,3734.5,3732.5,2.3958803]
[1760238006027,0.62478671,3734.5,3733.6,0.48166]
[1760238006218,0.00232671,3734.5,3732.9,1.90488694]
[1760238006415,0.00232671,3734.5,3734.4,0.48157]
[1760238006618,0.14322671,3734.5,3733.3,1.90488694]
[1760238006820,0.14322671,3734.5,3734.1,0.4816]
[1760238007423,0.14322671,3734.5,3733.9,0.48162]
[1760238007621,0.14322671,3734.5,3732.9,3.6002603]
[1760238007622,0.14322671,3734.5,3733.1,1.90488694]
[1760238007829,0.4816,3734.2,3733.0,1.90488694]
[1760238008130,0.3333,3734.2,3733.2,1.90488694]
[1760238008424,0.3333,3733.9,3733.4,0.48168]
[1760238008622,0.1409,3733.5,3732.7,1.90488694]
[1760238008825,0.3333,3733.4,3733.1,0.48173]
[1760238009128,0.1409,3733.5,3732.2,2.3958803]
[1760238009129,0.1409,3733.5,3732.7,1.90488694]
[1760238009324,0.1409,3733.5,3732.6,1.90488694]
[1760238009325,0.3333,3733.4,3732.6,1.90488694]
[1760238009532,0.3333,3733.3,3732.9,0.48175]
[1760238009829,0.3333,3733.7,3733.5,0.48167]
[1760238010030,0.3333,3733.9,3733.7,0.48165]
[1760238010428,0.1409,3734.0,3733.7,0.48165]
[1760238011729,0.3333,3733.9,3733.5,0.48168]
[1760238011924,0.3333,3733.9,3733.7,0.48165]
[1760238012426,0.3333,3733.9,3733.8,0.48164]
[1760238012621,0.1409,3734.0,3733.8,0.48164]
[1760238012830,0.3333,3734.3,3734.2,0.48159]
[1760238013132,0.47652671,3734.5,3734.4,0.48157]
[1760238014039,0.3333,3734.4,3734.3,0.48157]
[1760238015933,0.3333,3734.4,3733.3,3.10913694]
[1760238015934,0.3333,3733.4,3733.3,0.48171]
[1760238016635,0.3333,3733.8,3733.7,0.48166]
[1760238019136,0.1409,3734.0,3733.9,0.48163]
[1760238019137,0.4742,3734.0,3733.9,0.48163]
[1760238019327,0.3333,3733.9,3733.1,1.90488694]
[1760238019533,0.4742,3733.5,3733.4,0.48169]
[1760238020640,0.3333,3733.4,3732.7,1.90488694]
[1760238021132,0.1409,3733.5,3733.3,0.4817]
[1760238021338,0.3333,3733.4,3733.3,0.4817]
[1760238022234,0.3333,3734.3,3734.0,0.48161]
[1760238022439,0.3333,3734.3,3733.5,1.90488694]
[1760238022638,0.3333,3734.4,3734.1,0.4816]
[1760238022835,0.3333,3734.4,3734.2,0.48158]
[1760238023036,0.48153,3734.7,3734.2,0.48158]
[1760238023239,0.3333,3734.4,3734.3,0.48157]
[1760238023432,0.00232671,3734.5,3734.3,0.48157]
[1760238023634,0.1409,3735.5,3735.1,0.48148]
[1760238023936,0.1409,3735.5,3734.4,8.10880694]
[1760238023937,0.4742,3735.5,3735.4,0.48144]
[1760238024149,0.48133,3736.3,3735.6,0.4814]
[1760238024343,0.1409,3735.5,3734.9,0.0572]
[1760238024541,0.14389487,3735.5,3735.2,0.48146]
[1760238024736,0.14389487,3735.5,3735.3,0.48144]
[1760238024937,0.00299487,3735.5,3735.3,0.48144]
[1760238025239,0.00299487,3735.5,3734.9,0.00318782]
[1760238025548,0.1409,3735.0,3734.9,0.00318782]
[1760238026044,0.3333,3733.9,3733.5,1.90488694]
[1760238026343,0.3333,3734.3,3733.8,0.0572]
[1760238026536,0.3333,3734.4,3733.8,0.48164]
[1760238026839,0.1409,3734.0,3733.1,1.96208694]
[1760238027140,0.1409,3734.0,3733.8,0.48164]
[1760238027343,0.1409,3734.5,3734.1,0.4816]
[1760238027533,0.1409,3734.5,3734.3,0.48157]
[1760238027534,0.3333,3734.4,3734.3,0.48157]
[1760238027937,0.3333,3734.8,3734.7,0.48153]
[1760238028747,0.1409,3734.5,3734.2,0.48158]
[1760238028942,0.3333,3734.4,3734.3,0.48157]
[1760238029442,0.3333,3734.4,3733.7,1.90488694]
[1760238029639,0.3333,3734.4,3733.5,1.96208694]
[1760238029840,0.62246,3734.5,3734.0,0.48161]
[1760238030240,0.1409,3734.0,3733.4,1.90488694]
[1760238030536,0.3333,3733.9,3733.1,1.96499914]
[1760238030847,0.1409,3734.0,3733.7,0.48165]
[1760238031045,0.1409,3733.5,3733.1,0.4846322]
[1760238031347,0.3333,3733.4,3733.1,0.0029122]
[1760238032142,0.62259,3733.5,3733.1,0.4846422]
[1760238032445,0.3333,3733.4,3733.1,0.4846422]
[1760238032643,0.62259,3733.5,3733.1,0.4846422]
[1760238032844,0.3333,3733.4,3733.3,0.48171]
[1760238033041,0.3333,3733.4,3733.1,0.0029122]
[1760238033242,0.815,3733.4,3733.1,0.0029122]
[1760238033845,0.3333,3733.2,3733.1,0.0029122]
[1760238034448,0.3333,3733.8,3733.6,0.48166]
[1760238034745,0.1409,3734.0,3733.4,0.48169]
[1760238034746,0.62252,3734.0,3733.4,0.48169]
[1760238034940,0.1333,3733.5,3733.2,0.48171]
[1760238035135,0.349,3733.4,3733.1,0.0029122]
[1760238035348,0.349,3733.2,3733.1,0.0029122]
[1760238036545,0.1409,3734.0,3733.1,1.2072322]
[1760238036740,0.349,3733.9,3733.5,0.48167]
[1760238036945,0.349,3733.9,3733.1,0.0603122]
[1760238036946,0.349,3733.4,3733.3,0.4817]
[1760238037341,0.349,3733.8,3733.7,0.48165]
[1760238037843,0.349,3733.8,3733.5,0.48168]
[1760238038051,0.349,3733.6,3733.5,0.48168]
[1760238039539,0.349,3733.9,3733.8,0.48164]
[1760238039847,0.349,3734.4,3733.7,1.20414]
[1760238040045,0.349,3734.8,3734.1,0.0574]
[1760238040240,0.349,3735.2,3735.1,0.48148]
[1760238041046,0.13629487,3735.5,3735.4,0.48144]
[1760238041649,0.49089487,3735.5,3735.4,0.48144]
[1760238042244,0.1378,3735.0,3734.2,1.20398]
[1760238042441,0.13629487,3735.5,3735.3,0.48145]
[1760238042650,0.3546,3735.4,3735.3,0.48145]
[1760238044846,0.00299487,3735.5,3735.3,0.48145]
[1760238045244,0.35759487,3735.5,3735.3,0.53865]
[1760238045443,0.00299487,3735.5,3735.4,0.0572]
[1760238046054,4.87e-06,3735.5,3735.4,0.0572]
[1760238046356,0.3546,3736.9,3736.1,0.0572]
[1760238046557,0.4924,3737.0,3736.9,0.48124]
[1760238047354,0.49493719,3737.0,3736.9,0.48393129]
[1760238048653,0.00253719,3737.0,3736.9,5.54113129]
[1760238048849,0.00253719,3737.0,3736.9,0.54113129]
[1760238049550,0.3546,3736.9,3735.6,1.90488694]
[1760238049857,0.3546,3736.3,3735.4,0.0599]
[1760238050053,0.3546,3736.4,3734.9,0.0599]
[1760238050244,0.00253719,3737.0,3735.4,0.0599]
[1760238050552,0.00253719,3737.0,3736.9,0.0599]
[1760238052546,0.00253719,3737.0,3736.8,0.48125]
[1760238052851,0.00253719,3737.0,3736.9,0.0599]
[1760238053061,0.00253719,3737.0,3736.8,0.48125]
[1760238053551,0.00253719,3737.0,3736.9,0.0599]
[1760238054254,0.14033719,3737.0,3736.7,0.48126]
[1760238054552,0.3546,3736.9,3736.1,0.48134]
[1760238054758,0.3546,3736.9,3735.7,0.0599]
[1760238054953,0.48132,3736.3,3735.4,0.00260744]
[1760238055260,0.14033719,3737.0,3735.4,0.00260744]
[1760238055261,0.35713719,3737.0,3736.8,0.48125]
[1760238055858,0.00253719,3737.0,3736.8,0.48125]
[1760238056153,0.3546,3736.9,3736.8,0.48125]
[1760238056359,0.00253719,3737.0,3736.8,0.48125]
[1760238056553,0.3546,3736.9,3736.8,0.48125]
[1760238057058,0.48128,3736.7,3736.2,0.48133]
[1760238057361,0.3546,3736.4,3736.2,0.48133]
[1760238058063,0.00253719,3737.0,3736.8,0.48125]
[1760238058363,0.3546,3736.9,3736.8,0.48125]
[1760238058561,0.00253719,3737.0,3736.9,0.0599]
[1760238061551,0.00253719,3737.0,3736.9,5.0599]
[1760238062361,0.00253719,3737.0,3736.8,0.48125]
[1760238062565,0.14033719,3737.0,3736.8,0.48126]
[1760238062759,0.3546,3736.9,3736.8,0.48126]
[1760238063071,0.3546,3736.9,3735.5,0.0599]
[1760238063072,0.3546,3736.8,3735.6,0.0599]
[1760238063365,0.62156719,3737.0,3736.5,0.48129]
[1760238063663,0.48126,3736.8,3735.8,0.48137]
[1760238063959,0.3546,3736.9,3735.8,0.48138]
[1760238064160,0.3546,3736.9,3736.5,0.48129]
[1760238064663,0.14033719,3737.0,3736.6,0.48128]
[1760238064854,0.4813,3736.6,3735.3,1.2036]
[1760238065057,0.3664,3736.4,3736.3,0.48132]
[1760238065460,0.3664,3736.1,3735.0,1.26332]
[1760238065659,0.1461,3736.0,3735.8,0.48138]
[1760238065957,0.3664,3736.4,3736.2,0.48133]
[1760238066162,0.3664,3736.3,3735.4,0.06220744]
[1760238066361,0.1461,3736.0,3735.9,0.48137]
[1760238066567,0.5125,3736.0,3735.9,0.48137]
[1760238067156,0.3664,3736.4,3736.3,0.48131]
[1760238067360,0.50673719,3737.0,3736.2,0.0596]
[1760238067561,0.50673719,3737.0,3736.7,0.48126]